Cogmind - Beta 14 *** ADVENTURER MODE // 2024.08.23 @ 22:15:09 Player: LegoMDS Result: Destroyed by DAS Turret with DAS Cannon Performance ------------- Evolutions (1) 500 Regions Visited (5) 1000 Robots Destroyed (40) 200 Value Destroyed (915) 915 Prototype IDs (26) 520 Alien Tech Used (0) 0 Bonus (299) 299 TOTAL SCORE: 3434 Bonus ------- Follower Combat Kills 7 Aligned with FarCom 300 Friendly Fire -8 Cogmind --------- Core Integrity 0/400 Matter 261/300 Energy 264/265 System Corruption 1% Temperature Cool (-100) Movement Core (150) Ox2 Location -9/Exiles Parts ------- > --- POWER (1) -------- Improved Ion Engine > --- PROPULSION (2) --- (None) > --- UTILITY (3) ------ Cryofiber Web > --- WEAPON (3) ------- (None) > --- INVENTORY (5) ---- Improved Ion Engine Melee Analysis Suite Guided Plasma Cannon Autogun Improved Light Cannon Peak State ------------ > --- POWER ------------ Improved Ion Engine > --- PROPULSION ------- Aluminum Leg Aluminum Leg > --- UTILITY ---------- Cryofiber Web Small Storage Unit Targeting Computer > --- WEAPON ----------- Guided Plasma Cannon Shotgun Katana > --- INVENTORY -------- Improved Ion Engine Melee Analysis Suite System Shield Autogun Shotgun Improved Light Cannon Rocket Launcher [Rating: 23] Favorites ----------- Power Improved Ion Engine Engine Improved Ion Engine Propulsion Aluminum Leg Leg Aluminum Leg Utility Small Storage Unit Device Cryofiber Web Storage Small Storage Unit Processor Targeting Computer Weapon Shotgun Energy Gun Spread Laser Energy Cannon Guided Plasma Cannon Ballistic Gun Shotgun Launcher Rocket Launcher Slashing Weapon Katana Build | -11 -10 -10 -9 -9 -9 ------- Run | Yrd Mat Min Mat Min Exi Slots Evolved 2 | . . . 2 . . Power . | . . . . . . Propulsion . | . . . . . . Utility 1 | . . . 1 . . Weapon 1 | . . . 1 . . Parts Attached 29 | 5 4 4 10 2 4 Power 3 | 1 . 1 1 . . Engine 3 | 1 . 1 1 . . Core . | . . . . . . Reactor . | . . . . . . Propulsion 8 | 2 2 2 1 1 . Treads . | . . . . . . Leg 8 | 2 2 2 1 1 . Wheel . | . . . . . . Hover . | . . . . . . Flight . | . . . . . . Utility 5 | . 1 . 3 1 . Device 3 | . . . 2 1 . Storage 1 | . 1 . . . . Processor 1 | . . . 1 . . Hackware . | . . . . . . Protection . | . . . . . . Artifact . | . . . . . . Weapon 13 | 2 1 1 5 . 4 Energy Gun 5 | 2 1 . 2 . . Energy Cannon 1 | . . . . . 1 Ballistic Gun 5 | . . 1 3 . 1 Ballistic Cannon . | . . . . . . Launcher 1 | . . . . . 1 Special Weapon . | . . . . . . Impact Weapon . | . . . . . . Slashing Weapon 1 | . . . . . 1 Piercing Weapon . | . . . . . . Special Melee Weapon . | . . . . . . Unidentified Prototypes 1 | . . . 1 . . Parts Lost 12 | . . 2 1 2 7 Power 2 | . . 2 . . . Propulsion 3 | . . . . 1 2 Utility 3 | . . . . 1 2 Weapon 4 | . . . 1 . 3 Highest Loss Streak 7 | . . 1 1 2 7 To Critical Strikes . | . . . . . . Average Slot Usage (%) 94 | . 82 82 90 100 99 Engine 10 | . 14 11 7 11 11 Leg 23 | . 27 28 22 22 21 Device 8 | . . . 8 11 11 Storage 11 | . 11 14 11 11 10 Processor 8 | . . . 8 11 11 Energy Gun 11 | . 28 21 11 11 2 Energy Cannon 2 | . . . . . 8 Ballistic Gun 17 | . . 6 21 22 20 Peak Build Rating 23 | 5 6 6 16 17 23 Average Rating 14 | 3 5 5 13 16 20 On Entrance 8 | . 5 6 5 16 16 Naked Turns . | . . . . . . Heaviest Build 29 | 6 11 14 23 23 29 Greatest Support 23 | 20 20 20 23 23 20 Greatest Overweight (x) 3 | . 1 . . 1 3 Average Overweight (x) . | . . . . . 1 Largest Inventory Capacity 8 | 5 8 8 8 8 8 Average Capacity 7 | 5 7 8 8 8 7 Most Carried 8 | 4 6 7 8 8 8 Average Carried 6 | 2 2 6 7 6 6 Final Capacity 8 | 5 8 8 8 8 5 Final Carried 8 | 3 6 7 8 7 5 Class Distribution -------------------- 74% | Gunner 22% | Mutant 3% | Scavenger-Mutant Dominant Class ---------------- Mutant | -10/Materials Mutant | -10/Mines Gunner | -9/Materials Gunner | -9/Mines Gunner | -9/Exiles Resources | -11 -10 -10 -9 -9 -9 ----------- Run | Yrd Mat Min Mat Min Exi Matter Collected 897 | 212 78 113 353 134 7 Remotely . | . . . . . . Salvage Created 1233 | . 284 276 492 171 10 Parts 75 | . 16 9 32 18 . Haulers Intercepted . | . . . . . . Recyclers Shooed 2 | . 1 . 1 . . Parts Field Recycled . | . . . . . . Retrieved Matter . | . . . . . . Parts Self-Destructed . | . . . . . . Prevented . | . . . . . . Kills | -11 -10 -10 -9 -9 -9 ------- Run | Yrd Mat Min Mat Min Exi Combat Hostiles Destroyed 41 | . 6 10 10 11 4 Guns 36 | . 5 10 10 11 . AOE 4 | . . . . . 4 Classes Destroyed 8 | . 4 . 2 2 . Recycler 2 | . 1 . 1 . . Watcher 5 | . 2 . 3 . . Swarmer 17 | . 3 6 3 5 . Grunt 9 | . 3 4 1 1 . Brawler 1 | . . . . 1 . Duelist 1 | . . . 1 . . Sentry 5 | . . . 5 . . Assembled 8 | . . . . 4 4 Best Kill Streak 6 | . 4 6 3 6 4 Combat Bots Only 6 | . 3 6 3 5 4 Max Kills in Single Turn 2 | . 1 2 2 2 2 Gunslinging 1 | . . 1 1 1 . Exploded 2 | . . . . . 2 Melee . | . . . . . . Uniques/NPCs Destroyed . | . . . . . . Combat | -11 -10 -10 -9 -9 -9 -------- Run | Yrd Mat Min Mat Min Exi Hostile Shots Fired 220 | . 34 84 37 42 23 Missed 61 | . 12 24 14 8 3 Damage Taken 1982 | . 189 461 259 370 703 Core 553 | . 24 109 12 69 339 Absorbed by Shields . | . . . . . . Ignored by Resistances 582 | . 59 149 74 115 185 Core Remaining (%) 73 | 100 . 46 . . . Volleys Fired 114 | . 29 33 32 16 4 Largest 3 | . 2 2 3 3 1 Hottest 120 | . 90 90 111 111 120 Shots Fired 260 | . 58 65 95 38 4 Gun 256 | . 58 65 95 38 . Cannon 2 | . . . . . 2 Launcher 2 | . . . . . 2 Special . | . . . . . . Kinetic 116 | . . 26 63 27 . Thermal 142 | . 58 39 32 11 2 Explosive 2 | . . . . . 2 Electromagnetic . | . . . . . . Robot Hit Streak 27 | . 19 9 27 11 10 Robot Miss Streak 6 | . 2 2 6 5 . Penetration Max . | . . . . . . Secondary Targets 11 | . 1 2 1 7 . Max Gunslinging Chain 2 | . 1 1 1 2 . Shots Hit Robots 206 | . 49 47 72 34 4 Core Hits 94 | . 14 16 26 31 7 Critical Kills . | . . . . . . Critical Parts Destroyed . | . . . . . . Critical Strikes 7 | . 5 2 . . . Burn 7 | . 5 2 . . . Melee Attacks 4 | . . . . . 4 Impact . | . . . . . . Slashing 4 | . . . . . 4 Piercing . | . . . . . . Sneak Attacks . | . . . . . . Combat Hostiles . | . . . . . . Follow-up Attacks . | . . . . . . Damage Inflicted 3041 | . 575 567 1124 479 296 Guns 2745 | . 575 567 1124 479 . Cannons 78 | . . . . . 78 Explosions 218 | . . . . . 218 Melee . | . . . . . . Ramming . | . . . . . . Kinetic 1339 | . . 224 766 349 . Thermal 1484 | . 575 343 358 130 78 Explosive 218 | . . . . . 218 Electromagnetic . | . . . . . . Impact . | . . . . . . Slashing . | . . . . . . Piercing . | . . . . . . Highest Corruption 1 | . . . 1 1 1 Average Corruption 1 | . . . 1 1 1 Corruption Purged . | . . . . . . Corruption Blocked . | . . . . . . Effects 21 | . . . . 8 13 Message Errors 7 | . . . . 1 6 Matter Fused 5 | . . . . 3 2 Heat Flow Errors 4 | . . . . 2 2 Energy Discharges 2 | . . . . 1 1 Parts Fused 1 | . . . . 1 . Data Loss (minor) 1 | . . . . . 1 Data Loss (major) 1 | . . . . . 1 Overload Shots . | . . . . . . Overflow Damage . | . . . . . . Projectiles . | . . . . . . Explosions . | . . . . . . Melee . | . . . . . . Knockbacks . | . . . . . . Impact . | . . . . . . Kinetic . | . . . . . . Secondary . | . . . . . . Self-Inflicted Damage 39 | . . . . . 39 Shots 1 | . . . . . 1 Rammed . | . . . . . . Targets Rammed 1 | . . . . 1 . Kicked 1 | . . . . 1 . Crushed . | . . . . . . Highest Temperature 333 | . 333 207 135 254 112 Average Temperature 103 | . 150 88 41 92 46 Received Heat Transfer 514 | . 105 201 102 86 20 Effects 4 | . 3 1 . . . Energy Bleed 2 | . 1 1 . . . Interference 2 | . 2 . . . . Siege Activations . | . . . . . . Robots Corrupted . | . . . . . . Combat Hostiles . | . . . . . . Parts Fried . | . . . . . . Impact Corruptions . | . . . . . . Robots Melted 1 | . 1 . . . . Combat Hostiles 1 | . 1 . . . . Parts Melted 10 | . 7 3 . . . Heat Transferred 4110 | . 1871 1112 792 175 160 Parts Sabotaged . | . . . . . . Parts Stolen . | . . . . . . Parts Stripped . | . . . . . . Power Chain Reactions . | . . . . . . Alert | -11 -10 -10 -9 -9 -9 ------- Run | Yrd Mat Min Mat Min Exi Peak Influence 235 | . 219 235 227 161 . Initial 20 | . . 6 14 20 . Average 79 | . 129 72 84 64 . Maximum Alert Level 1 | . 1 1 1 . . Low Security (%) 92 | 100 84 79 91 100 . Level 1 8 | . 15 20 8 . . Level 2 . | . . . . . . Level 3 . | . . . . . . Level 4 . | . . . . . . Level 5 . | . . . . . . High Security . | . . . . . . Max Security . | . . . . . . Squads Dispatched 1 | . . . 1 . . Investigation 1 | . . . 1 . . Extermination . | . . . . . . Reinforcement . | . . . . . . Assault . | . . . . . . Garrison . | . . . . . . Intercept . | . . . . . . Searches Triggered . | . . . . . . Construction Impeded . | . . . . . . Haulers Reinforced . | . . . . . . Active Scanning Responses . | . . . . . . Cargo Convoy Interrupts . | . . . . . . Stealth | -11 -10 -10 -9 -9 -9 --------- Run | Yrd Mat Min Mat Min Exi Distress Signals . | . . . . . . Communications Jammed . | . . . . . . Distress Signals . | . . . . . . Times Spotted 58 | . 11 11 15 15 6 Peak Tracking Total 11 | . 4 4 3 8 11 Tactical Retreats 2 | . 1 1 . . . Traps | -11 -10 -10 -9 -9 -9 ------- Run | Yrd Mat Min Mat Min Exi Traps Triggered 2 | . 2 . . . . Indirectly . | . . . . . . Trap Hack Attempts . | . . . . . . Triggered . | . . . . . . Disarmed . | . . . . . . Reprogrammed . | . . . . . . Reused . | . . . . . . Traps Extracted . | . . . . . . Installed . | . . . . . . Triggered . | . . . . . . Machines | -11 -10 -10 -9 -9 -9 ---------- Run | Yrd Mat Min Mat Min Exi Machines Disabled 2 | . . . . . 2 Max in Single Turn 1 | . . . . . 1 Machines Repaired . | . . . . . . Machines Dismantled . | . . . . . . Machines Sabotaged . | . . . . . . Overloaded Fab Kills . | . . . . . . Hacking | -11 -10 -10 -9 -9 -9 --------- Run | Yrd Mat Min Mat Min Exi Machines Accessed 7 | . 2 . 3 . 2 Terminals 4 | . 2 . 2 . . Fabricators . | . . . . . . Repair Stations . | . . . . . . Recycling Units . | . . . . . . Scanalyzers 1 | . . . 1 . . Garrison Access . | . . . . . . Total Hacks 18 | . 5 . 8 . 5 Successful 10 | . . . 5 . 5 Failed 8 | . 5 . 3 . . Catastrophic 1 | . 1 . . . . Database Lockouts . | . . . . . . Manual 9 | . 5 . 3 . 1 Terminals 9 | . 5 . 4 . . Fabricators . | . . . . . . Repair Stations . | . . . . . . Recycling Units . | . . . . . . Scanalyzers 4 | . . . 4 . . Garrison Access . | . . . . . . Terminal Hacks 7 | . . . 2 . 5 Record 4 | . . . . . 4 Prototype ID Bank 1 | . . . 1 . . Branch Access Points 1 | . . . 1 . . Derelict Proto ID Bank 1 | . . . . . 1 Fabricator Hacks . | . . . . . . Repair Station Hacks . | . . . . . . Recycling Unit Hacks . | . . . . . . Scanalyzer 3 | . . . 3 . . Insert Component 2 | . . . 2 . . Analyze 1 | . . . 1 . . Garrison Access Hacks . | . . . . . . Unauthorized Hacks . | . . . . . . Terminals . | . . . . . . Fabricators . | . . . . . . Repair Stations . | . . . . . . Recycling Units . | . . . . . . Scanalyzers . | . . . . . . Garrison Access . | . . . . . . Data Cores Recovered . | . . . . . . Used . | . . . . . . Hacking Detections 4 | . 2 . 2 . . Full Trace Events 3 | . 1 . 2 . . Feedback Events 1 | . . . 1 . . Corruption 1 | . . . 1 . . Feedback Blocked . | . . . . . . Robot Schematics Acquired . | . . . . . . Robots Built . | . . . . . . Authchips . | . . . . . . Time . | . . . . . . Total Robot Build Rating . | . . . . . . Part Schematics Acquired 1 | . . . 1 . . Parts Built . | . . . . . . Authchips . | . . . . . . Time . | . . . . . . Total Part Build Rating . | . . . . . . Parts Repaired . | . . . . . . Time . | . . . . . . Parts Recycled . | . . . . . . Recycled Matter . | . . . . . . Retrieved Matter . | . . . . . . Retrieved Components . | . . . . . . Parts Scanalyzed 1 | . . . 1 . . Part Schematics Acquired 1 | . . . 1 . . Parts Damaged . | . . . . . . Bothacking | -11 -10 -10 -9 -9 -9 ------------ Run | Yrd Mat Min Mat Min Exi Used RIF Installer . | . . . . . . Robots Hacked . | . . . . . . Non-combat . | . . . . . . Combat . | . . . . . . Robot Hacks Applied . | . . . . . . Relay Couplers Released . | . . . . . . Fabnet Peak Effective % . | . . . . . . Robots Rewired . | . . . . . . Allies Hacked . | . . . . . . Hacks Repelled . | . . . . . . Allies | -11 -10 -10 -9 -9 -9 -------- Run | Yrd Mat Min Mat Min Exi Total Allies 1 | . . . . 1 . Largest Group 1 | . . . . 1 1 Highest-Rated Group 31 | . . . . 31 31 Highest-Rated Ally 31 | . . . . 31 31 Total Orders . | . . . . . . Ally Attacks 14 | . . . . 14 . Total Damage 165 | . . . . 165 . Kills 6 | . . . . 6 . Allies Corrupted . | . . . . . . Allies Melted . | . . . . . . Intel | -11 -10 -10 -9 -9 -9 ------- Run | Yrd Mat Min Mat Min Exi Robot Analysis Total . | . . . . . . Derelict Logs Recovered 3 | . . 2 . 1 . Drone Launches . | . . . . . . Drone Recoveries . | . . . . . . Exploration | -11 -10 -10 -9 -9 -9 ------------- Run | Yrd Mat Min Mat Min Exi Turns Passed 4478 | 54 420 491 860 1150 1503 Spaces Moved 2572 | 41 266 313 579 595 778 Core 13 | 11 . . . . 2 Treads . | . . . . . . Legs 2559 | 30 266 313 579 595 776 Wheels . | . . . . . . Hover . | . . . . . . Flight . | . . . . . . Fastest Speed 50 | 50 120 120 120 120 150 Average Speed 155 | 101 120 120 120 184 190 Slowest Speed 260 | 120 190 120 120 190 260 Overloaded Moves . | . . . . . . Propulsion Burnouts . | . . . . . . Robots Hopped 2 | . . . . . 2 Cave-ins Triggered . | . . . . . . Exploration Rate (%) 63 | 3 47 80 58 98 93 Regions Visited 5 Branch Regions 3 Pre-discovered Areas 3 | . . 1 . 1 1 Known Exits Taken 1 | . . . 1 . . Unknown Exits Taken 4 | 1 1 1 . 1 . Scrap Searched 2 | . . 1 . 1 . Spaces Dug 3 | . . . . . 3 Terrain Destroyed 7 | . . . . . 7 Melee 3 | . . . . . 3 Projectile . | . . . . . . AOE 4 | . . . . . 4 Terrain Rammed . | . . . . . . Walls Destroyed . | . . . . . . Machines Disabled . | . . . . . . Actions | -11 -10 -10 -9 -9 -9 --------- Run | Yrd Mat Min Mat Min Exi Total 2814 | 53 307 362 680 621 791 Wait 51 | . 2 11 31 7 . Move 2563 | 40 265 312 578 594 774 Hop 2 | . . . . . 2 Pick Up 35 | 8 7 2 16 1 1 Fast Attach 3 | . . . 3 . . Attach 19 | 5 4 1 5 2 2 Detach 1 | . . . . . 1 Swap 8 | . . 3 3 . 2 Drop 13 | . . . 12 . 1 Fire 114 | . 29 33 32 16 4 Melee 4 | . . . . . 4 Ram . | . . . . . . Kick 1 | . . . . 1 . Crush . | . . . . . . Escape Stasis . | . . . . . . Rewire . | . . . . . . Trap . | . . . . . . Miscellaneous . | . . . . . . Route ------- -11/Scrapyard -10/Materials (discovered 2 exits: *Mat / [*Min]) -10/Mines -9/Materials (discovered 4 exits: [*Mat x2] / *Min x2) -9/Mines (discovered 3 exits: [*Mat x2] / *Exi) -9/Exiles (discovered 2 exits: [*Min x2]) History --------- Turn | Location | Event 6 | -11/Scrapyard | Discovered new exit (range 16) 55 | -11/Scrapyard | Entered Materials 296 | -10/Materials | Discovered new exit (range 7) 318 | -10/Materials | Build established: Mutant 418 | -10/Materials | Discovered new exit (range 3) 475 | -10/Materials | Entered Mines 547 | -10/Mines | Learned Materials emergency access door positions 841 | -10/Mines | Learned location of Mines (-9) 898 | -10/Mines | Core integrity fell below 50% 960 | -10/Mines | Discovered new exit (range 5) 966 | -10/Mines | Entered Materials 966 | -9/Materials | Evolved 2 slots: Utility x1, Weapon x1 1297 | -9/Materials | Build established: Gunner 1390 | -9/Materials | Discovered new exit (range 10) 1501 | -9/Materials | Discovered new exit (range 16) 1710 | -9/Materials | Discovered new exit (range 14) 1789 | -9/Materials | Identified exit to Mines 1826 | -9/Materials | Entered Mines 1831 | -9/Mines | Escorted by a lone wolf Derelict 1854 | -9/Mines | Learned location of Storage (-8) 1874 | -9/Mines | Assembled infested the area 2008 | -9/Mines | Learned location of 1 exit from Materials 2226 | -9/Mines | Discovered new exit (range 10) 2468 | -9/Mines | Discovered new exit (range 16) 2475 | -9/Mines | Received a Rocket Launcher from a helpful Derelict 2961 | -9/Mines | Deemed a non-threat by the Exiles lab entrance 2961 | -9/Mines | Discovered new exit (range 5) 2976 | -9/Mines | Entered Exiles 2976 | -9/Exiles | Accompanied by 1 ally 3005 | -9/Exiles | Discovered new exit (range 15) 3081 | -9/Exiles | Met 8R-AWN 3111 | -9/Exiles | Met EX-HEX 3182 | -9/Exiles | Met EX-DEC 3218 | -9/Exiles | Learned location of Zion (-6) 3252 | -9/Exiles | Met EX-BIN 3279 | -9/Exiles | Aligned with FarCom system 3280 | -9/Exiles | Given EX-Vault access code 3326 | -9/Exiles | Opened EX-Vault 3338 | -9/Exiles | Found Gui. Plasma Cannon 3382 | -9/Exiles | Warned to stay clear of 0b10 Research branches 3491 | -9/Exiles | Visited The Gauntlet 4252 | -9/Exiles | Discovered new exit (range 14) 4444 | -9/Exiles | Attacked by the Exiles 4462 | -9/Exiles | Core integrity fell below 50% 4478 | -9/Exiles | Core integrity fell below 20% 4479 | -9/Exiles | Destroyed by DAS Turret with DAS Cannon Last Messages --------------- Shotgun destroyed. EX-BIN: "I just want to science!" Destroyed Mak. Hover Unit. Aluminum Leg destroyed. 5L-5H6(g) destroyed. Shotgun destroyed. Knocked back. System corrupted: Matter fused (-9). Sml. Storage Unit destroyed. Aluminum Leg destroyed. as-37990 destroyed. as-97323 destroyed. as-88669 destroyed. EX-Message Board disabled. as-37100 destroyed. Targeting Computer destroyed. Critical hit (Blast). Acquired 7 matter. Rocket Launcher destroyed. Knocked back. Map ----- +----------------------------------------------------+ | ??????????????????????????????#"""" ## #????? | | ??????????????????????????????#""X" #????? | | ??????????????????????????????#" #????? | | ??????????????????????????????#" ## #????? | | ??????????????????????????????#""""""## #?#### | | ??????????????????????????????##"###### #?#""" | | ?????????????????????????????? "#????# #?#""" | | ?????????????????????????????""" #????# #?#""" | | ?????????????????????????????""" #???## ###"" | | ?????#######??????????????????"" #???#" | | ?????#!!! "#???????????????????###???#" | | ?????# "#?????????????????????????#" | | ?????# "#?????????????????????????#" | | #???## ""#??????????########???????#" | | #####" ""#??????????# """#???????#" | | ##" ""#??????????#"" """#???????## | | #"" #????????????#"" #????????# | | #????????????#"" #????????#" "X" | | ##???????????#"" #????????#" """ | | "#???????????# ""#????????#" """"" | | ###?????????#"" ""#???????##" ###### | | ##????????###% ###??????##"" #????? | | "###"" ######?##### ##########"" #????? | | "#?##" """### % ##""""""" ##???? | | ##??#" % " " "" ##??? | | ###???#"# @ " #### | | #?????#### % " | | ?????????### % | | ???????????### % | | ?????????????## | | ??????????????## % | | ???????????????##" =%a | | ????????????????#""" """""" | | ???????????????##" ######""" | | ???????????????#"" ""##????#####""" | | ??????????????##""" """##?????????##""" | | ??????????????#""" """##???????????#"""" | | ??????????????#""" ""#???????????##"" | | ??????????????#"" z ########??####"""" | | ??????????????#""" ## ####""" | | ??????????????#"" """" | | ??????????????##"" | | ???????????????#"""" | | ???????????????## | | ????????????????#" " "" | | ????????????????#"""" ""## ##""" " | | ????????????????#"" ""#### ######"" | | ????????????????#" """"##??# #????### | | ????????????????#""" """#??## ####???# | | ????????????????## ""##??#! "!#???? | +----------------------------------------------------+ Best States ------------- Heat Dissipation 50 Energy Generation 12 Energy Capacity 265 Matter Stores 300 Matter Capacity 300 Sight Range 16 Terrain Scan Density 10 Base Temperature (-) 100 Resistance: KI 20 Resistance: TH 20 Resistance: EX 20 Resistance: EM 20 Resistance: I 20 Resistance: S 20 Resistance: P 20 Evasion (%) 55 Targeting Accuracy 5 Offensive Hacking 10 Item Schematics ----------------- Katana | -9/Materials | Scanalyzed Robot Schematics ------------------ None Fabricated ------------ Nothing Alien Tech Used ----------------- None Achievements -------------- None Challenges ------------ None Game ------ Seed MetaArchitectArray Manual? 0 Play Time 00:20:24 Cumulative 36.8 hours Start 2024.08.23 @ 21:55:56 End 2024.08.23 @ 22:15:09 Sessions 1 Manual Loads 0 Difficulty Adventurer Special Mode None Game No. 45 Rogue 13 Adventurer 32 Explorer 0 Win Type - Total 0 Types 0/0/0/0/0/0/0/0/0 Lore% 30 Gallery% 39 Achievement% 35 Wizard Run 0 Options --------- Layout 1 ASCII 0 Keyboard 0 Movement Mouse Keybinds 0 Fullscreen 1 Font 24/Smallcaps Map View 50x35 Zoom Use 0% Tactical HUD 0 Map Filters NONE Filters NONE Steam 1 RUN: 735de7f8-586d-4c44-b871-d13bffdf1142